[Event "16th Marseille Festival 2023"]
[Site "Marseille"]
[Date "2023.12.30"]
[Round "7.3"]
[White "Petrosyan, Armen"]
[Black "Bilych, Olexiy"]
[Result "0-1"]
[WhiteElo "2368"]
[BlackElo "2433"]
[PlyCount "120"]
[EventDate "2023.12.30"]
[EventType "swiss"]
[EventCountry "FRA"]
[TimeControl "5400+30"]

1. e4 {[%emt 0:03:04]} e5 {[%emt 0:00:05]} 2. Nf3 {[%emt 0:00:12]} Nc6 {[%emt 0:00:05]} 3. Bb5 {[%emt 0:00:04]} a6 {[%emt 0:00:05]} 4. Ba4 {[%emt 0:00:05]} Nf6 {[%emt 0:00:05]} 5. O-O {[%emt 0:00:12]} Be7 {[%emt 0:00:03]} 6. Re1 {[%emt 0:00:07]} b5 {[%emt 0:00:04]} 7. Bb3 {[%emt 0:00:04]} d6 {[%emt 0:00:04]} 8. c3 {[%emt 0:00:08]} Na5 {[%emt 0:00:07]} 9. Bc2 {[%emt 0:00:05]} c5 {[%emt 0:00:04]} 10. d4 {[%emt 0:02:00]} cxd4 {[%emt 0:00:04]} 11. cxd4 {[%emt 0:00:03]} Bg4 {[%emt 0:00:03]} 12. dxe5 {[%emt 0:01:01]} Bxf3 {[%emt 0:00:05]} 13. gxf3 {[%emt 0:02:48]} dxe5 {[%emt 0:00:17]} 14. Qxd8+ {[%emt 0:00:04]} Rxd8 {[%emt 0:00:47]} 15. f4 {[%emt 0:04:47]} Nc6 {[%emt 0:03:57]} 16. Nc3 {[%emt 0:01:59]} O-O {[%emt 0:16:30]} 17. Kg2 {[%emt 0:01:03]} Bd6 {[%emt 0:14:11]} 18. fxe5 {[%emt 0:02:56]} Bxe5 {[%emt 0:00:17]} 19. f4 {[%emt 0:01:13]} Nb4 {[%emt 0:01:20]} 20. Bb1 {[%emt 0:02:19]} Bxc3 {[%emt 0:00:35]} 21. bxc3 {[%emt 0:00:04]} Nd3 {[%emt 0:00:04]} 22. Bxd3 {[%emt 0:01:13]} Rxd3 {[%emt 0:00:05]} 23. Re2 {[%emt 0:00:52]} Re8 {[%emt 0:01:55]} 24. a4 {[%emt 0:00:37]} g6 {[%emt 0:00:08]} 25. axb5 {[%emt 0:00:12]} axb5 {[%emt 0:00:04]} 26. e5 {[%emt 0:02:58]} Nd5 {[%emt 0:00:09]} 27. Bd2 {[%emt 0:00:24]} Rc8 {[%emt 0:11:43]} 28. Kf2 {[%emt 0:11:58]} Nxc3 {[%emt 0:10:53]} 29. Bxc3 {[%emt 0:08:01]} Rcxc3 {[%emt 0:00:13]} 30. Ra8+ {[%emt 0:02:35]} Kg7 {[%emt 0:00:08]} 31. Ra7 {[%emt 0:00:13]} Rf3+ {[%emt 0:04:18]} 32. Kg2 {[%emt 0:00:34]} Rxf4 {[%emt 0:00:05]} 33. e6 {[%emt 0:00:11]} Rc8 {[%emt 0:00:06]} 34. Rf2 {[%emt 0:02:52]} Rxf2+ {[%emt 0:05:39]} 35. Kxf2 {[%emt 0:00:51]} Rf8 {[%emt 0:00:03]} 36. Rb7 {[%emt 0:11:36]} Kg8 {[%emt 0:00:13]} 37. Kg3 {[%emt 0:01:24]} fxe6 {[%emt 0:00:09]} 38. Rxb5 {[%emt 0:00:03]} Kg7 {[%emt 0:00:13]} 39. Rb2 {[%emt 0:00:29]} Rf5 {[%emt 0:00:35]} 40. h4 {[%emt 0:00:26]} Kf6 {[%emt 0:00:35]} 41. Rb7 {[%emt 0:00:10]} h5 {[%emt 0:00:19]} 42. Rb8 {[%emt 0:00:22]} Ra5 {[%emt 0:01:11]} 43. Rf8+ {[%emt 0:00:29]} Ke5 {[%emt 0:00:08]} 44. Rg8 {[%emt 0:00:07]} Ra3+ {[%emt 0:00:12]} 45. Kf2 {[%emt 0:00:37]} Kf6 {[%emt 0:00:33]} 46. Rf8+ {[%emt 0:00:26]} Ke7 {[%emt 0:00:07]} 47. Rf4 {[%emt 0:00:11]} e5 {[%emt 0:00:12]} 48. Rb4 {[%emt 0:00:05]} Kf6 {[%emt 0:00:06]} 49. Kg2 {[%emt 0:00:15]} Rd3 {[%emt 0:00:07]} 50. Ra4 {[%emt 0:00:26]} Kf5 {[%emt 0:00:10]} 51. Ra6 {[%emt 0:00:04]} Rd4 {[%emt 0:00:09]} 52. Kh3 {[%emt 0:00:08]} Rg4 {[%emt 0:00:11]} 53. Ra5 {[%emt 0:01:13]} Kf4 {[%emt 0:00:06]} 54. Ra6 {[%emt 0:00:17]} e4 {[%emt 0:00:06]} 55. Rf6+ {[%emt 0:00:07]} Ke5 {[%emt 0:00:10]} 56. Rf8 {[%emt 0:00:23]} e3 {[%emt 0:00:04]} 57. Re8+ {[%emt 0:00:05]} Kd4 {[%emt 0:00:04]} 58. Rd8+ {[%emt 0:00:10]} Kc3 {[%emt 0:00:10]} 59. Re8 {[%emt 0:00:11]} Kd3 {[%emt 0:00:20]} 60. Rd8+ {[%emt 0:00:11]} Rd4 {[%emt 0:00:14]} 0-1

[Event "16th Marseille Festival 2023"]
[Site "Marseille"]
[Date "2023.12.30"]
[Round "7.4"]
[White "Pichon, Ewen"]
[Black "Avanesyan, Davit"]
[Result "1-0"]
[WhiteElo "2274"]
[BlackElo "2142"]
[PlyCount "83"]
[EventDate "2023.12.30"]
[EventType "swiss"]
[EventCountry "FRA"]
[TimeControl "5400+30"]

1. e4 {[%emt 0:00:03]} c5 {[%emt 0:00:12]} 2. Nf3 {[%emt 0:00:05]} Nc6 {[%emt 0:00:03]} 3. d4 {[%emt 0:00:14]} cxd4 {[%emt 0:00:04]} 4. Nxd4 {[%emt 0:00:01]} e5 {[%emt 0:00:01]} 5. Nb5 {[%emt 0:00:07]} d6 {[%emt 0:00:02]} 6. c4 {[%emt 0:00:07]} Be7 {[%emt 0:02:34]} 7. N5c3 {[%emt 0:00:12]} Nf6 {[%emt 0:00:05]} 8. Bd3 {[%emt 0:00:03]} O-O {[%emt 0:00:06]} 9. O-O {[%emt 0:00:29]} g6 {[%emt 0:00:54]} 10. Bh6 {[%emt 0:04:00]} Re8 {[%emt 0:00:21]} 11. h3 {[%emt 0:00:24]} Be6 {[%emt 0:01:53]} 12. Nd5 {[%emt 0:03:15]} Bxd5 {[%emt 0:01:34]} 13. cxd5 {[%emt 0:01:09]} Nb4 {[%emt 0:00:08]} 14. Bb5 {[%emt 0:01:39]} Nd7 {[%emt 0:00:02]} 15. a3 {[%emt 0:01:07]} Na6 {[%emt 0:00:05]} 16. Qg4 {[%emt 0:13:50]} Nab8 {[%emt 0:02:27]} 17. Nc3 {[%emt 0:04:20]} a6 {[%emt 0:00:15]} 18. Be2 {[%emt 0:02:33]} Nf6 {[%emt 0:00:54]} 19. Qg3 {[%emt 0:00:29]} Bf8 {[%emt 0:02:41]} 20. Be3 {[%emt 0:00:44]} Bg7 {[%emt 0:00:46]} 21. Qf3 {[%emt 0:18:22]} Nh5 {[%emt 0:06:18]} 22. g3 {[%emt 0:01:07]} Bf6 {[%emt 0:07:48]} 23. Qg2 {[%emt 0:03:44]} Ng7 {[%emt 0:00:19]} 24. h4 {[%emt 0:01:29]} Be7 {[%emt 0:03:08]} 25. h5 {[%emt 0:00:53]} gxh5 {[%emt 0:07:43]} 26. Qh3 {[%emt 0:03:41]} Nd7 {[%emt 0:00:52]} 27. Bxh5 {[%emt 0:00:33]} Nxh5 {[%emt 0:00:39]} 28. Qxh5 {[%emt 0:00:02]} Nf6 {[%emt 0:00:36]} 29. Qe2 {[%emt 0:01:16]} Qd7 {[%emt 0:00:25]} 30. Kg2 {[%emt 0:00:15]} Qg4 {[%emt 0:00:52]} 31. f3 {[%emt 0:00:41]} Qg6 {[%emt 0:00:09]} 32. Kf2 {[%emt 0:07:41]} Nh5 {[%emt 0:14:14]} 33. Rg1 {[%emt 0:00:14]} Bg5 {[%emt 0:00:13]} 34. Bxg5 {[%emt 0:06:11]} Qxg5 {[%emt 0:00:08]} 35. Qe3 {[%emt 0:00:01]} Qg6 {[%emt 0:02:02]} 36. Ne2 {[%emt 0:00:55]} Rac8 {[%emt 0:00:06]} 37. Rac1 {[%emt 0:00:09]} Ng7 {[%emt 0:01:26]} 38. g4 {[%emt 0:00:27]} Rxc1 {[%emt 0:00:58]} 39. Qxc1 {[%emt 0:00:28]} h5 {[%emt 0:05:29]} 40. gxh5 {[%emt 0:03:25]} Qxh5 {[%emt 0:00:04]} 41. Rh1 {[%emt 0:00:06]} Qg6 {[%emt 0:00:36]} 42. Rh6 {[%emt 0:00:32]} 1-0

[Event "16th Marseille Festival 2023"]
[Site "Marseille"]
[Date "2023.12.30"]
[Round "7.5"]
[White "Bremond, Pascal"]
[Black "Vu Dinh, Adrien"]
[Result "0-1"]
[WhiteElo "1894"]
[BlackElo "2234"]
[PlyCount "50"]
[EventDate "2023.12.30"]
[EventType "swiss"]
[EventCountry "FRA"]
[TimeControl "5400+30"]

1. d4 {[%emt 0:00:03]} Nf6 {[%emt 0:00:15]} 2. c4 {[%emt 0:00:08]} c5 {[%emt 0:00:22]} 3. dxc5 {[%emt 0:01:58]} e6 {[%emt 0:01:12]} 4. Nf3 {[%emt 0:00:21]} Bxc5 {[%emt 0:00:19]} 5. g3 {[%emt 0:01:52]} O-O {[%emt 0:03:27]} 6. Bg2 {[%emt 0:00:40]} Nc6 {[%emt 0:10:22]} 7. O-O {[%emt 0:01:57]} d6 {[%emt 0:01:17]} 8. Nc3 {[%emt 0:00:45]} a6 {[%emt 0:01:23]} 9. e4 {[%emt 1:27:16]} Rb8 {[%emt 0:08:03]} 10. a3 {[%emt 0:00:00]} Qc7 {[%emt 0:05:05]} 11. Bg5 {[%emt 0:00:00]} Nd7 {[%emt 0:03:56]} 12. Rc1 {[%emt 0:00:00]} f6 {[%emt 0:11:34]} 13. Bf4 {[%emt 0:00:00]} Nde5 {[%emt 0:00:45]} 14. Ne2 {[%emt 0:00:00]} Rd8 {[%emt 0:05:30]} 15. Qc2 {[%emt 0:00:00]} Bd7 {[%emt 0:02:47]} 16. h3 {[%emt 0:00:00]} Be8 {[%emt 0:01:47]} 17. g4 {[%emt 0:00:00]} Rbc8 {[%emt 0:04:05]} 18. b4 {[%emt 0:00:00]} Ba7 {[%emt 0:00:36]} 19. Rfd1 {[%emt 0:00:00]} Qe7 {[%emt 0:01:39]} 20. Bg3 {[%emt 0:00:00]} Rc7 {[%emt 0:07:31]} 21. Nd2 {[%emt 0:00:00]} h5 {[%emt 0:01:40]} 22. c5 {[%emt 0:00:00]} dxc5 {[%emt 0:03:18]} 23. bxc5 {[%emt 0:00:00]} Rcd7 {[%emt 0:02:37]} 24. Nf4 {[%emt 0:00:00]} Nd4 {[%emt 0:01:06]} 25. Qa2 {[%emt 0:00:00]} g5 {[%emt 0:02:56]} 0-1

[Event "16th Marseille Festival 2023"]
[Site "Marseille"]
[Date "2023.12.30"]
[Round "7.6"]
[White "Baroyan, Davit"]
[Black "Delaplace, Mathias"]
[Result "1-0"]
[WhiteElo "2203"]
[BlackElo "1956"]
[PlyCount "97"]
[EventDate "2023.12.30"]
[EventType "swiss"]
[EventCountry "FRA"]
[TimeControl "5400+30"]

1. Nf3 {[%emt 0:00:02]} Nf6 {[%emt 0:00:03]} 2. g3 {[%emt 0:00:04]} g6 {[%emt 0:00:02]} 3. b3 {[%emt 0:00:03]} Bg7 {[%emt 0:00:03]} 4. Bb2 {[%emt 0:00:05]} O-O {[%emt 0:00:20]} 5. Bg2 {[%emt 0:00:02]} d6 {[%emt 0:00:15]} 6. d4 {[%emt 0:00:06]} Nbd7 {[%emt 0:00:58]} 7. O-O {[%emt 0:05:19]} c6 {[%emt 0:00:21]} 8. c4 {[%emt 0:00:07]} Re8 {[%emt 0:00:37]} 9. Nc3 {[%emt 0:01:10]} e5 {[%emt 0:01:07]} 10. e3 {[%emt 0:01:04]} exd4 {[%emt 0:24:27]} 11. Nxd4 {[%emt 0:06:00]} Nc5 {[%emt 0:02:17]} 12. Qc2 {[%emt 0:00:23]} Ne6 {[%emt 0:02:54]} 13. Rad1 {[%emt 0:01:52]} Nxd4 {[%emt 0:02:10]} 14. Rxd4 {[%emt 0:00:53]} Qe7 {[%emt 0:17:14]} 15. Qd2 {[%emt 0:09:01]} Rd8 {[%emt 0:09:28]} 16. Rd1 {[%emt 0:06:27]} d5 {[%emt 0:02:59]} 17. cxd5 {[%emt 0:00:43]} cxd5 {[%emt 0:04:39]} 18. Bxd5 {[%emt 0:09:31]} Re8 {[%emt 0:05:02]} 19. Bf3 {[%emt 0:01:16]} a6 {[%emt 0:05:34]} 20. Na4 {[%emt 0:16:01]} Bf5 {[%emt 0:01:29]} 21. Nb6 {[%emt 0:05:40]} Rab8 {[%emt 0:00:12]} 22. Nc4 {[%emt 0:00:08]} Be4 {[%emt 0:02:26]} 23. Qe2 {[%emt 0:06:29]} Red8 {[%emt 0:03:01]} 24. Ba3 {[%emt 0:02:02]} Qe8 {[%emt 0:00:28]} 25. Nd6 {[%emt 0:00:32]} Bxf3 {[%emt 0:00:16]} 26. Nxe8 {[%emt 0:00:33]} Rxd4 {[%emt 0:00:15]} 27. Nxf6+ {[%emt 0:00:25]} Bxf6 {[%emt 0:00:04]} 28. Qxf3 {[%emt 0:00:05]} Rxd1+ {[%emt 0:00:11]} 29. Qxd1 {[%emt 0:00:01]} Rd8 {[%emt 0:00:07]} 30. Qf3 {[%emt 0:29:26]} Kg7 {[%emt 0:01:08]} 31. Qxb7 {[%emt 0:00:00]} Rd1+ {[%emt 0:00:17]} 32. Kg2 {[%emt 0:00:00]} Ra1 {[%emt 0:00:04]} 33. Qxa6 {[%emt 0:00:00]} Rb1 {[%emt 0:00:04]} 34. Bc5 {[%emt 0:00:00]} h5 {[%emt 0:00:11]} 35. Bd4 {[%emt 0:00:00]} Bxd4 {[%emt 0:00:06]} 36. exd4 {[%emt 0:00:00]} h4 {[%emt 0:00:09]} 37. gxh4 {[%emt 0:00:00]} Rd1 {[%emt 0:00:03]} 38. Qe2 {[%emt 0:00:00]} Rc1 {[%emt 0:00:07]} 39. d5 {[%emt 0:00:00]} Rc8 {[%emt 0:00:03]} 40. d6 {[%emt 0:00:00]} Rd8 {[%emt 0:00:08]} 41. Qe5+ {[%emt 0:00:00]} Kh7 {[%emt 0:00:12]} 42. Qe7 {[%emt 0:00:00]} Rg8 {[%emt 0:00:29]} 43. Qxf7+ {[%emt 0:00:00]} Rg7 {[%emt 0:00:08]} 44. Qe8 {[%emt 0:00:00]} g5 {[%emt 0:00:13]} 45. h5 {[%emt 0:00:00]} g4 {[%emt 0:00:08]} 46. d7 {[%emt 0:00:00]} g3 {[%emt 0:00:05]} 47. d8=Q {[%emt 0:00:00]} gxh2+ {[%emt 0:00:31]} 48. Kxh2 {[%emt 0:00:00]} Rg5 {[%emt 0:00:08]} 49. Qh8# {[%emt 0:00:00]} 1-0

[Event "16th Marseille Festival 2023"]
[Site "Marseille"]
[Date "2023.12.30"]
[Round "7.7"]
[White "De Carvalho Massabo, Raphael"]
[Black "Charlier, Antoine"]
[Result "1/2-1/2"]
[WhiteElo "2137"]
[BlackElo "2147"]
[PlyCount "122"]
[EventDate "2023.12.30"]
[EventType "swiss"]
[EventCountry "FRA"]
[TimeControl "5400+30"]

1. e4 {[%emt 0:00:08]} e5 {[%emt 0:00:08]} 2. Nf3 {[%emt 0:00:04]} Nc6 {[%emt 0:00:10]} 3. Bc4 {[%emt 0:00:03]} Nf6 {[%emt 0:00:15]} 4. d3 {[%emt 0:00:03]} h6 {[%emt 0:00:13]} 5. O-O {[%emt 0:00:28]} d6 {[%emt 0:00:52]} 6. a4 {[%emt 0:00:46]} g5 {[%emt 0:00:35]} 7. Nc3 {[%emt 0:00:57]} Bg7 {[%emt 0:01:16]} 8. a5 {[%emt 0:04:18]} a6 {[%emt 0:04:07]} 9. Be3 {[%emt 0:01:37]} O-O {[%emt 0:04:19]} 10. Re1 {[%emt 0:06:29]} Re8 {[%emt 0:06:49]} 11. h3 {[%emt 0:12:59]} g4 {[%emt 0:06:35]} 12. hxg4 {[%emt 0:00:36]} Bxg4 {[%emt 0:03:28]} 13. Nb1 {[%emt 0:14:51]} Nd4 {[%emt 0:21:58]} 14. Nbd2 {[%emt 0:04:20]} Nxf3+ {[%emt 0:08:21]} 15. Nxf3 {[%emt 0:00:12]} Nh7 {[%emt 0:02:34]} 16. Qd2 {[%emt 0:15:12]} Qf6 {[%emt 0:14:53]} 17. Nh2 {[%emt 0:00:24]} Bd7 {[%emt 0:07:59]} 18. c3 {[%emt 0:04:42]} Ng5 {[%emt 0:03:10]} 19. Rf1 {[%emt 0:01:58]} Qg6 {[%emt 0:01:14]} 20. Qe2 {[%emt 0:07:36]} Kh8 {[%emt 0:01:38]} 21. Bxg5 {[%emt 0:04:21]} hxg5 {[%emt 0:00:31]} 22. g4 {[%emt 0:00:12]} Rad8 {[%emt 0:05:03]} 23. Kg2 {[%emt 0:01:46]} Bc6 {[%emt 0:01:53]} 24. Qf3 {[%emt 0:00:31]} Kg8 {[%emt 0:01:12]} 25. Rh1 {[%emt 0:00:16]} Qf6 {[%emt 0:01:04]} 26. Rad1 {[%emt 0:01:39]} Qxf3+ {[%emt 0:01:58]} 27. Nxf3 {[%emt 0:00:01]} d5 {[%emt 0:00:10]} 28. exd5 {[%emt 0:05:11]} Bxd5 {[%emt 0:00:01]} 29. Bxd5 {[%emt 0:00:28]} Rxd5 {[%emt 0:00:01]} 30. Nxg5 {[%emt 0:00:36]} Red8 {[%emt 0:00:57]} 31. Rh3 {[%emt 0:01:05]} Rxa5 {[%emt 0:00:28]} 32. Ne4 {[%emt 0:00:20]} Kf8 {[%emt 0:02:04]} 33. g5 {[%emt 0:00:31]} Rb5 {[%emt 0:00:30]} 34. Rd2 {[%emt 0:00:15]} Rb6 {[%emt 0:00:27]} 35. Kf3 {[%emt 0:00:23]} f5 {[%emt 0:00:33]} 36. gxf6 {[%emt 0:01:23]} Bxf6 {[%emt 0:00:06]} 37. Nxf6 {[%emt 0:00:12]} Rxf6+ {[%emt 0:00:39]} 38. Ke4 {[%emt 0:00:03]} Ke7 {[%emt 0:00:28]} 39. Rh7+ {[%emt 0:03:58]} Kd6 {[%emt 0:00:40]} 40. d4 {[%emt 0:00:21]} Rf4+ {[%emt 0:00:36]} 41. Ke3 {[%emt 0:00:04]} Rdf8 {[%emt 0:00:25]} 42. dxe5+ {[%emt 0:00:34]} Kc6 {[%emt 0:00:38]} 43. Rh6+ {[%emt 0:02:41]} Kb5 {[%emt 0:00:26]} 44. Rd5+ {[%emt 0:00:09]} c5 {[%emt 0:00:13]} 45. e6 {[%emt 0:02:18]} Rf3+ {[%emt 0:00:34]} 46. Ke4 {[%emt 0:00:19]} Rxf2 {[%emt 0:00:12]} 47. b4 {[%emt 0:02:58]} R8f4+ {[%emt 0:00:58]} 48. Ke5 {[%emt 0:00:22]} Rf5+ {[%emt 0:00:32]} 49. Kd6 {[%emt 0:00:09]} Rxd5+ {[%emt 0:00:31]} 50. Kxd5 {[%emt 0:00:02]} Rd2+ {[%emt 0:00:13]} 51. Ke5 {[%emt 0:00:04]} cxb4 {[%emt 0:00:45]} 52. cxb4 {[%emt 0:00:01]} Re2+ {[%emt 0:00:19]} 53. Kd6 {[%emt 0:00:46]} Kxb4 {[%emt 0:00:17]} 54. e7 {[%emt 0:00:04]} Rxe7 {[%emt 0:00:56]} 55. Kxe7 {[%emt 0:00:04]} a5 {[%emt 0:00:15]} 56. Rb6+ {[%emt 0:02:06]} Kc3 {[%emt 0:00:23]} 57. Rxb7 {[%emt 0:00:14]} a4 {[%emt 0:00:00]} 58. Kd6 {[%emt 0:01:49]} a3 {[%emt 0:00:05]} 59. Kc5 {[%emt 0:00:27]} a2 {[%emt 0:00:11]} 60. Ra7 {[%emt 0:00:02]} Kb2 {[%emt 0:00:07]} 61. Rxa2+ {[%emt 0:00:08]} Kxa2 {[%emt 0:00:02]} 1/2-1/2

[Event "16th Marseille Festival 2023"]
[Site "Marseille"]
[Date "2023.12.30"]
[Round "7.8"]
[White "Figier, Anthony"]
[Black "Le Roy, Tristan"]
[Result "0-1"]
[WhiteElo "2026"]
[BlackElo "1955"]
[PlyCount "76"]
[EventDate "2023.12.30"]
[EventType "swiss"]
[EventCountry "FRA"]
[TimeControl "5400+30"]

1. Nf3 {[%emt 0:00:08]} Nf6 {[%emt 0:00:32]} 2. g3 {[%emt 0:00:07]} e6 {[%emt 0:00:05]} 3. Bg2 {[%emt 0:00:06]} d5 {[%emt 0:00:28]} 4. O-O {[%emt 0:00:15]} Be7 {[%emt 0:00:18]} 5. d4 {[%emt 0:00:15]} O-O {[%emt 0:00:06]} 6. c4 {[%emt 0:02:18]} c6 {[%emt 0:00:17]} 7. Qc2 {[%emt 0:02:24]} b6 {[%emt 0:01:09]} 8. Nbd2 {[%emt 0:01:59]} Bb7 {[%emt 0:00:36]} 9. e4 {[%emt 0:05:04]} a5 {[%emt 0:00:11]} 10. e5 {[%emt 0:07:48]} Nfd7 {[%emt 0:00:07]} 11. cxd5 {[%emt 0:00:09]} cxd5 {[%emt 0:00:07]} 12. Nb1 {[%emt 0:08:32]} b5 {[%emt 0:08:48]} 13. h4 {[%emt 0:02:36]} Nc6 {[%emt 0:01:07]} 14. Be3 {[%emt 0:01:14]} Qb6 {[%emt 0:03:34]} 15. Nc3 {[%emt 0:03:09]} Rfc8 {[%emt 0:02:49]} 16. Qd1 {[%emt 0:01:38]} a4 {[%emt 0:06:53]} 17. Bh3 {[%emt 0:04:37]} Na5 {[%emt 0:01:41]} 18. Rb1 {[%emt 0:03:06]} a3 {[%emt 0:06:42]} 19. Ne2 {[%emt 0:11:31]} axb2 {[%emt 0:06:49]} 20. Rxb2 {[%emt 0:00:30]} Nc4 {[%emt 0:00:18]} 21. Rc2 {[%emt 0:00:40]} b4 {[%emt 0:09:16]} 22. Nf4 {[%emt 0:02:02]} Na3 {[%emt 0:12:58]} 23. Rxc8+ {[%emt 0:01:37]} Rxc8 {[%emt 0:00:09]} 24. Qa4 {[%emt 0:10:31]} Nf8 {[%emt 0:10:54]} 25. Rc1 {[%emt 0:03:18]} Nc4 {[%emt 0:00:38]} 26. Rb1 {[%emt 0:06:06]} Ra8 {[%emt 0:01:03]} 27. Qd1 {[%emt 0:00:04]} Rxa2 {[%emt 0:01:37]} 28. Bc1 {[%emt 0:01:10]} Bc6 {[%emt 0:03:35]} 29. Qb3 {[%emt 0:03:52]} Ra7 {[%emt 0:03:04]} 30. Bf1 {[%emt 0:05:18]} Ba4 {[%emt 0:01:10]} 31. Qd3 {[%emt 0:00:01]} Qc6 {[%emt 0:06:08]} 32. Qe2 {[%emt 0:06:24]} Na3 {[%emt 0:05:32]} 33. Bxa3 {[%emt 0:00:35]} bxa3 {[%emt 0:00:03]} 34. Ne1 {[%emt 0:03:12]} Rb7 {[%emt 0:01:40]} 35. Ra1 {[%emt 0:01:29]} Qc3 {[%emt 0:01:30]} 36. Qa6 {[%emt 0:03:23]} Qxa1 {[%emt 0:03:57]} 37. Qxb7 {[%emt 0:01:07]} Qxe1 {[%emt 0:01:01]} 38. Qxe7 {[%emt 0:00:14]} a2 {[%emt 0:00:20]} 0-1

[Event "16th Marseille Festival 2023"]
[Site "Marseille"]
[Date "2023.12.30"]
[Round "8.1"]
[White "Lamard, Guillaume"]
[Black "Gusain, Himal"]
[Result "1/2-1/2"]
[WhiteElo "2497"]
[BlackElo "2457"]
[PlyCount "69"]
[EventDate "2023.12.30"]
[EventType "swiss"]
[EventCountry "FRA"]
[TimeControl "5400+30"]

1. Nf3 {[%emt 0:00:03]} d5 {[%emt 0:09:27]} 2. d4 {[%emt 0:00:21]} e6 {[%emt 0:00:12]} 3. c4 {[%emt 0:00:04]} c6 {[%emt 0:00:03]} 4. g3 {[%emt 0:00:14]} dxc4 {[%emt 0:00:06]} 5. Bg2 {[%emt 0:00:04]} b5 {[%emt 0:00:05]} 6. O-O {[%emt 0:01:07]} Nf6 {[%emt 0:00:13]} 7. a4 {[%emt 0:07:05]} Bb7 {[%emt 0:00:13]} 8. b3 {[%emt 0:05:14]} cxb3 {[%emt 0:00:59]} 9. Qxb3 {[%emt 0:00:03]} b4 {[%emt 0:00:05]} 10. Ne5 {[%emt 0:04:31]} a5 {[%emt 0:06:40]} 11. Rd1 {[%emt 0:03:51]} Be7 {[%emt 0:01:12]} 12. Nd2 {[%emt 0:00:40]} O-O {[%emt 0:05:20]} 13. Ndc4 {[%emt 0:08:31]} Qc7 {[%emt 0:00:40]} 14. Bf4 {[%emt 0:00:46]} Nd5 {[%emt 0:01:18]} 15. Rac1 {[%emt 0:03:05]} Nxf4 {[%emt 0:09:26]} 16. gxf4 {[%emt 0:00:03]} Ra6 {[%emt 0:06:32]} 17. Qf3 {[%emt 0:08:58]} Nd7 {[%emt 0:02:16]} 18. Nxd7 {[%emt 0:09:01]} Qxd7 {[%emt 0:00:29]} 19. Ne5 {[%emt 0:00:03]} Qd6 {[%emt 0:03:20]} 20. Qb3 {[%emt 0:00:48]} g6 {[%emt 0:06:10]} 21. e3 {[%emt 0:00:03]} Rc8 {[%emt 0:00:39]} 22. Rd2 {[%emt 0:00:48]} Qd8 {[%emt 0:00:35]} 23. Rdc2 {[%emt 0:00:14]} Qe8 {[%emt 0:00:23]} 24. Rc4 {[%emt 0:04:02]} Bd6 {[%emt 0:06:47]} 25. Qb2 {[%emt 0:01:16]} Qe7 {[%emt 0:04:23]} 26. Nd3 {[%emt 0:06:11]} Raa8 {[%emt 0:02:18]} 27. Nc5 {[%emt 0:00:21]} Ba6 {[%emt 0:03:15]} 28. R4c2 {[%emt 0:00:11]} Bxc5 {[%emt 0:00:11]} 29. Rxc5 {[%emt 0:00:04]} Bd3 {[%emt 0:00:18]} 30. Qb3 {[%emt 0:00:56]} Bf5 {[%emt 0:02:03]} 31. h3 {[%emt 0:02:16]} e5 {[%emt 0:01:22]} 32. fxe5 {[%emt 0:02:55]} Qh4 {[%emt 0:01:38]} 33. Rxc6 {[%emt 0:14:15]} Bxh3 {[%emt 0:02:26]} 34. Rc7 {[%emt 0:10:52]} Rxc7 {[%emt 0:02:05]} 35. Rxc7 {[%emt 0:00:09]} 1/2-1/2

[Event "16th Marseille Festival 2023"]
[Site "Marseille"]
[Date "2023.12.30"]
[Round "8.2"]
[White "Bilych, Olexiy"]
[Black "Pichon, Ewen"]
[Result "1-0"]
[WhiteElo "2433"]
[BlackElo "2274"]
[PlyCount "127"]
[EventDate "2023.12.30"]
[EventType "swiss"]
[EventCountry "FRA"]
[TimeControl "5400+30"]

1. e4 {[%emt 0:00:02]} e5 {[%emt 0:00:23]} 2. Nf3 {[%emt 0:00:05]} Nc6 {[%emt 0:00:03]} 3. Bc4 {[%emt 0:00:06]} Nf6 {[%emt 0:00:05]} 4. d3 {[%emt 0:00:04]} Bc5 {[%emt 0:00:03]} 5. c3 {[%emt 0:00:07]} d6 {[%emt 0:00:06]} 6. O-O {[%emt 0:00:24]} O-O {[%emt 0:00:07]} 7. Re1 {[%emt 0:00:18]} a6 {[%emt 0:00:40]} 8. a4 {[%emt 0:00:10]} h6 {[%emt 0:00:15]} 9. h3 {[%emt 0:00:04]} Ba7 {[%emt 0:00:29]} 10. Nbd2 {[%emt 0:00:16]} Re8 {[%emt 0:00:14]} 11. Nf1 {[%emt 0:00:20]} Be6 {[%emt 0:00:04]} 12. Bxe6 {[%emt 0:00:08]} Rxe6 {[%emt 0:00:03]} 13. b4 {[%emt 0:01:37]} d5 {[%emt 0:04:05]} 14. Qc2 {[%emt 0:00:05]} dxe4 {[%emt 0:03:41]} 15. dxe4 {[%emt 0:00:15]} Ne7 {[%emt 0:00:22]} 16. Be3 {[%emt 0:01:41]} Bxe3 {[%emt 0:01:39]} 17. Nxe3 {[%emt 0:00:08]} Ng6 {[%emt 0:00:16]} 18. g3 {[%emt 0:01:30]} a5 {[%emt 1:26:55]} 19. Nc4 {[%emt 0:03:48]} axb4 {[%emt 0:00:00]} 20. cxb4 {[%emt 0:00:04]} Qe7 {[%emt 0:00:00]} 21. b5 {[%emt 0:05:22]} Qc5 {[%emt 0:00:00]} 22. Rec1 {[%emt 0:00:59]} Re7 {[%emt 0:00:00]} 23. Qb1 {[%emt 0:12:39]} Qa7 {[%emt 0:00:00]} 24. a5 {[%emt 0:00:12]} Nd7 {[%emt 0:00:00]} 25. Qb2 {[%emt 0:12:27]} Nc5 {[%emt 0:00:00]} 26. Qc2 {[%emt 0:01:56]} Rd8 {[%emt 0:00:00]} 27. Ne3 {[%emt 0:03:26]} Ne6 {[%emt 0:00:00]} 28. Nd5 {[%emt 0:00:26]} Red7 {[%emt 0:00:00]} 29. Qb2 {[%emt 0:02:34]} Kh8 {[%emt 0:00:00]} 30. Nxe5 {[%emt 0:00:56]} Nxe5 {[%emt 0:00:00]} 31. Qxe5 {[%emt 0:00:06]} Nd4 {[%emt 0:00:00]} 32. b6 {[%emt 0:07:55]} Nf3+ {[%emt 0:00:00]} 33. Kg2 {[%emt 0:00:08]} Nxe5 {[%emt 0:00:00]} 34. bxa7 {[%emt 0:00:06]} Ra8 {[%emt 0:00:00]} 35. f4 {[%emt 0:04:14]} Ng6 {[%emt 0:00:00]} 36. Rxc7 {[%emt 0:00:32]} Rxc7 {[%emt 0:00:00]} 37. Nxc7 {[%emt 0:00:04]} Rxa7 {[%emt 0:00:00]} 38. e5 {[%emt 0:00:14]} Kg8 {[%emt 0:00:00]} 39. Kf3 {[%emt 0:00:20]} Ne7 {[%emt 0:00:00]} 40. Rd1 {[%emt 0:05:33]} Rxa5 {[%emt 0:00:00]} 41. Rd8+ {[%emt 0:00:12]} Kh7 {[%emt 0:00:00]} 42. Rd7 {[%emt 0:00:07]} Ra3+ {[%emt 0:00:00]} 43. Kg4 {[%emt 0:05:41]} h5+ {[%emt 0:00:00]} 44. Kxh5 {[%emt 0:35:09]} Nf5 {[%emt 0:00:00]} 45. Rxf7 {[%emt 0:00:00]} Nh6 {[%emt 0:00:00]} 46. Rd7 {[%emt 0:00:00]} Rxg3 {[%emt 0:00:00]} 47. Ne6 {[%emt 0:00:00]} Rxh3+ {[%emt 0:00:00]} 48. Kg5 {[%emt 0:00:00]} Rg3+ {[%emt 0:00:00]} 49. Kh4 {[%emt 0:00:00]} Rg1 {[%emt 0:00:44]} 50. Rxb7 {[%emt 0:00:00]} Rg2 {[%emt 0:04:01]} 51. Kh3 {[%emt 0:00:00]} Rg1 {[%emt 0:01:03]} 52. Rb6 {[%emt 0:00:00]} Nf7 {[%emt 0:02:33]} 53. Nf8+ {[%emt 0:00:00]} Kg8 {[%emt 0:00:45]} 54. Rb8 {[%emt 0:00:00]} Re1 {[%emt 0:01:59]} 55. f5 {[%emt 0:00:00]} g6 {[%emt 0:05:54]} 56. Nxg6+ {[%emt 0:00:00]} Kg7 {[%emt 0:00:03]} 57. Rb7 {[%emt 0:00:00]} Kg8 {[%emt 0:00:31]} 58. Re7 {[%emt 0:00:00]} Ng5+ {[%emt 0:00:51]} 59. Kh4 {[%emt 0:00:00]} Nf3+ {[%emt 0:00:39]} 60. Kg4 {[%emt 0:00:00]} Nd4 {[%emt 0:00:51]} 61. Kg5 {[%emt 0:00:00]} Rf1 {[%emt 0:01:03]} 62. Re8+ {[%emt 0:00:00]} Kg7 {[%emt 0:00:05]} 63. f6+ {[%emt 0:00:00]} Kf7 {[%emt 0:00:03]} 64. Re7+ {[%emt 0:00:00]} 1-0